bitfinex-derivatives/quotes_SOLF0:USTF0_20250904
["timestamp","ask_amount","ask_price","bid_price","bid_amount"]
[1756992883706,7.68,208.02,207.9,4.65959087]
[1756992883905,7.68,208.02,207.91,7.69]
[1756992884307,0.03354532,207.99,207.91,7.69]
[1756992884509,0.03354532,207.99,207.87,4.65959087]
[1756992884510,7.68,207.98,207.87,7.69]
[1756992884911,7.68,207.98,207.87,12.34959087]
[1756992885111,0.0363695,207.95,207.87,12.34959087]
[1756992885611,0.0363695,207.95,207.88,7.69]
[1756992886004,7.68,208.09,207.95,7.69]
[1756992886207,7.68,208.09,207.99,7.69]
[1756992886913,7.68,208.14,208.01,4.65959087]
[1756992887614,7.68,208.14,208.05,0.03530736]
[1756992892613,4.65959087,208.13,208.05,0.03530736]
[1756992892820,7.68,208.12,208.05,0.03530736]
[1756992893122,131.58,208.12,208.05,0.03530736]
[1756992895521,4.65959087,208.1,208.05,0.03530736]
[1756992895818,7.68,208.09,208.05,0.03530736]
[1756992896326,4.65959087,208.1,208.05,0.03530736]
[1756992896620,7.68,208.08,208.05,0.03530736]
[1756992898619,131.24,208.1,208.05,0.03530736]
[1756992899424,7.68,208.16,208.06,7.69]
[1756992899618,130.08,208.16,208.06,7.69]
[1756992900715,130.08,208.16,208.05,4.69489823]
[1756992900716,130.08,208.16,208.05,0.03530736]
[1756992901424,7.68,208.13,208.05,0.03530736]
[1756992902624,131.26,208.13,208.05,0.03530736]
[1756992904116,4.65959087,208.12,208.05,0.03530736]
[1756992904421,7.68,208.07,207.91,7.69]
[1756992904626,7.68,208.04,207.91,7.69]
[1756992904923,0.03032465,208.01,207.91,7.69]
[1756992905623,43.87032465,208.01,207.91,7.69]
[1756992906216,0.03032465,208.01,207.91,7.69]
[1756992907219,0.03032465,208.01,207.97,4.65959087]
[1756992907419,0.03032465,208.01,207.94,4.65959087]
[1756992907626,0.03032465,208.01,207.95,7.69]
[1756992907827,0.03032465,208.01,207.9,3.98904857]
[1756992907828,0.03032465,208.01,207.98,7.69]
[1756992908020,7.68,208.08,207.98,7.69]
[1756992908217,7.68,208.08,207.93,4.3272]
[1756992908218,51.2,208.11,208.0,4.65959087]
[1756992908423,7.68,208.1,208.0,12.34959087]
[1756992908626,0.03431215,208.08,208.0,12.34959087]
[1756992909019,0.03431215,208.08,208.01,4.65959087]
[1756992909529,0.03431215,208.08,208.02,7.69]
[1756992909829,0.03431215,208.08,208.05,4.65959087]
[1756992910024,0.03431215,208.08,208.06,7.69]
[1756992910224,0.03431215,208.08,208.05,4.65959087]
[1756992910728,0.03431215,208.08,208.06,7.69]
[1756992910925,0.03431215,208.08,208.05,4.65959087]
[1756992911430,0.03431215,208.08,208.06,7.69]
[1756992912029,0.03431215,208.08,208.05,4.65959087]
[1756992912632,0.03431215,208.08,208.06,7.46]
[1756992912826,0.03431215,208.08,208.05,4.65959087]
[1756992913027,0.03431215,208.08,208.05,5.13959087]
[1756992913226,0.03431215,208.08,208.06,7.46]
[1756992913433,316.88,208.2,208.06,7.94]
[1756992913629,316.88,208.2,208.1,7.46]
[1756992914428,316.88,208.2,208.03,7.46]
[1756992914623,316.88,208.2,208.07,4.65959087]
[1756992914828,316.88,208.2,208.13,0.03212007]
[1756992915133,326.8742508,208.2,208.13,0.03212007]
[1756992915333,5.33465993,208.19,208.13,0.03212007]
[1756992915528,7.28,208.16,208.13,0.03212007]
[1756992915732,7.28,208.14,208.01,7.46]
[1756992916234,124.22,208.13,208.01,7.46]
[1756992916632,7.28,208.12,208.01,7.46]
[1756992917131,0.03446011,208.09,208.01,7.46]
[1756992917336,7.28,208.08,207.96,7.46]
[1756992917937,0.03275585,208.04,207.96,7.46]
[1756992919735,0.03275585,208.04,207.98,4.65959087]
[1756992919940,0.03275585,208.04,207.99,7.46]
[1756992920139,12.61465993,208.13,207.99,7.46]
[1756992920436,0.03228559,208.04,207.98,4.65959087]
[1756992920634,0.03228559,208.04,208.01,4.65959087]
[1756992920834,0.03228559,208.04,208.02,7.46]
[1756992921033,0.03228559,208.04,208.01,4.65959087]
[1756992921233,0.03228559,208.04,208.01,5.13959087]
[1756992922035,0.03228559,208.04,208.02,7.46]
[1756992922237,0.03228559,208.04,208.01,5.13959087]
[1756992922538,0.03228559,208.04,208.02,7.46]
[1756992922739,5.33465993,208.16,208.02,0.48]
[1756992922939,4.65959087,208.13,207.96,7.46]
[1756992923129,12.61465993,208.12,208.01,0.03445871]
[1756992923333,17.2742508,208.12,208.01,0.03445871]
[1756992923536,17.2742508,208.12,207.96,7.46]
[1756992923733,5.33465993,208.15,208.02,4.65959087]
[1756992923935,84.46,208.17,208.02,4.65959087]
[1756992924136,84.46,208.17,208.02,4.6901775]
[1756992924335,84.46,208.17,208.02,4.65959087]
[1756992924538,131.72,208.17,208.02,4.65959087]
[1756992924737,7.28,208.17,208.07,0.03259067]
[1756992924938,131.68,208.17,208.07,0.03259067]
[1756992925133,7.28,208.15,208.07,0.03259067]
[1756992925843,12.61465993,208.15,208.07,0.03259067]
[1756992926439,7.28,208.15,208.07,0.03259067]
[1756992926739,12.61465993,208.15,208.07,0.03259067]
[1756992926947,4.65959087,208.16,208.07,0.03259067]
[1756992926948,4.65959087,208.12,208.07,0.03259067]
[1756992927145,9.9942508,208.12,208.07,0.03259067]
[1756992927442,13.09465993,208.11,207.95,7.46]
[1756992927638,12.61465993,208.11,207.95,7.46]
[1756992928240,54.72,208.11,207.95,7.46]
[1756992928540,7.28,208.11,207.95,7.46]
[1756992928734,0.03285417,208.05,207.95,7.46]
[1756992929939,0.03285417,208.05,207.95,11.7867]
[1756992930138,0.03285417,208.05,207.96,7.46]
[1756992933445,0.03285417,208.05,207.96,12.11959087]
[1756992933646,12.61465993,208.17,208.04,4.65959087]
[1756992933945,5.33465993,208.2,208.16,4.65959087]
[1756992934142,7.28,208.27,208.17,7.46]
[1756992934343,5.33465993,208.34,208.21,7.46]
[1756992934545,7.28,208.38,208.25,7.46]
[1756992934946,7.28,208.38,208.29,0.03056567]
[1756992935840,314.93465993,208.42,208.29,0.03056567]
[1756992936044,309.6,208.42,208.29,7.49056567]
[1756992936348,309.6,208.42,208.29,7.46]
[1756992936544,309.6,208.42,208.33,0.03531044]
[1756992938944,7.28,208.43,208.33,0.03531044]
[1756992944860,8.0910915,208.42,208.33,0.03531044]
[1756992945159,7.36,208.41,208.33,0.03531044]
[1756992946654,7.36,208.37,208.22,7.28]
[1756992946850,7.36,208.35,208.16,7.28]
[1756992947157,7.36,208.31,208.16,7.28]
[1756992947658,7.36,208.31,208.11,8.0910915]
[1756992947953,7.36,208.25,208.1,7.28]
[1756992948155,7.36,208.23,208.1,7.28]
[1756992948559,7.36,208.23,208.04,8.0910915]
[1756992948752,0.03688165,208.19,208.0,8.0910915]
[1756992948959,7.36,208.18,208.01,7.28]
[1756992949361,0.03432534,208.12,208.01,7.28]
[1756992951856,7.36,208.11,208.01,7.28]
[1756992952665,7.36,208.11,207.94,7.28]
[1756992952963,7.68,208.1,207.94,7.28]
[1756992953355,0.0336874,208.05,207.94,7.28]
[1756992953663,7.36,208.04,207.88,7.28]
[1756992953959,8.0910915,207.98,207.78,7.28]
[1756992954159,7.36,207.97,207.78,7.28]
[1756992954460,9.1,207.96,207.78,7.28]
[1756992954758,0.0309657,207.9,207.78,7.28]
[1756992959059,0.0309657,207.9,207.8,7.28]
[1756992959464,8.5,207.97,207.8,7.28]
[1756992959655,0.03113316,207.87,207.8,7.28]
[1756992961468,0.03113316,207.87,207.82,7.28]
[1756992961657,0.03113316,207.87,207.81,139.8910915]
[1756992962063,0.03113316,207.87,207.81,132.6110915]
[1756992962266,0.03113316,207.87,207.82,7.28]
[1756992962660,0.03113316,207.87,207.81,132.6110915]
[1756992963066,0.03113316,207.87,207.8,7.28]
[1756992964862,0.03113316,207.87,207.81,124.7]
[1756992965465,7.36,208.0,207.85,8.0910915]
[1756992965672,7.36,208.0,207.86,7.28]
[1756992965870,7.36,208.0,207.81,124.7]
[1756992965871,7.36,208.08,207.9,7.28]
[1756992966368,7.36,208.08,207.94,7.28]
[1756992966667,7.36,208.08,207.95,59.7110915]
[1756992966876,34.24,208.09,207.99,7.31344778]
[1756992967672,34.24,208.09,207.99,41.27344778]
[1756992967873,7.36,208.14,207.99,73.53344778]
[1756992968175,7.36,208.14,207.99,73.5]
[1756992968679,7.36,208.14,207.99,81.5910915]
[1756992968874,7.36,208.14,207.99,73.5]
[1756992969073,7.36,208.14,208.0,133.5510915]
[1756992969378,7.36,208.14,208.04,0.0306034]
[1756992970979,7.36,208.1,207.94,7.28]
[1756992971278,7.36,208.08,207.91,14.06]
[1756992971479,8.0910915,208.09,207.91,14.06]
[1756992971773,7.36,208.07,207.91,14.06]
[1756992971982,7.36,208.07,207.92,7.28]
[1756992972174,0.03325071,208.01,207.92,7.28]
[1756992972379,0.03325071,208.01,207.92,95.46]
[1756992972680,0.03325071,208.01,207.92,7.28]
[1756992973579,0.03325071,208.01,207.95,7.67]
[1756992973980,0.03325071,208.01,207.95,133.15]
[1756992974181,0.03325071,208.01,207.95,7.67]
[1756992974776,0.03325071,208.01,207.97,7.67]
[1756992974982,0.03325071,208.01,207.96,8.0910915]
[1756992975578,0.03325071,208.01,207.97,8.0910915]
[1756992975780,0.03325071,208.01,207.98,7.67]
[1756992975982,7.87,208.14,207.98,7.67]
[1756992976376,7.87,208.14,207.99,52.9]
[1756992977381,7.87,208.14,208.04,0.03576987]
[1756992978073,7.87,208.21,208.04,7.70576987]
[1756992978382,7.87,208.18,207.97,7.67]
[1756992978582,7.87,208.14,207.97,7.67]
[1756992978877,8.0910915,208.15,207.97,7.67]
[1756992978878,7.87,208.12,207.97,7.67]
[1756992979278,7.87,208.12,208.02,0.03545566]
[1756992980884,7.87,208.19,208.02,0.03545566]
[1756992981075,7.87,208.19,208.03,7.67]
[1756992981275,7.87,208.19,208.05,8.0910915]
[1756992981482,7.87,208.24,208.1,7.67]
[1756992982282,7.87,208.24,208.15,0.03563895]
[1756992982680,8.0910915,208.23,208.15,0.03563895]
[1756992982873,7.87,208.22,208.15,0.03563895]
[1756992983076,125.7,208.21,208.15,0.03563895]
[1756992983273,7.87,208.2,208.0,309.64]
[1756992983478,8.0910915,208.19,208.0,309.64]
[1756992983681,7.87,208.18,208.01,7.67]
[1756992984481,7.87,208.14,207.94,7.67]
[1756992984785,181.22339311,208.25,207.94,7.67]
[1756992984786,15.9610915,208.11,207.94,7.67]
[1756992984988,7.87,208.09,207.94,7.67]
[1756992985380,0.03113397,208.05,207.94,7.67]
[1756992985881,7.87,208.04,207.89,7.67]
[1756992986781,0.03347749,207.99,207.89,7.67]
[1756992987182,0.03347749,207.99,207.93,7.67]
[1756992987383,0.03347749,207.99,207.96,8.0910915]
[1756992987982,0.03347749,207.99,207.97,7.67]
[1756992988880,0.03347749,207.99,207.93,7.67]
[1756992989680,0.03347749,207.99,207.86,15.7610915]
[1756992989884,0.03347749,207.99,207.86,7.67]
[1756992990078,7.87,208.0,207.86,7.67]
[1756992990278,7.87,208.0,207.8,7.67]
[1756992990478,0.03219545,207.95,207.8,7.67]
[1756992990779,7.87,208.0,207.84,7.67]
[1756992991089,0.03118446,207.9,207.84,7.67]
[1756992993589,0.03118446,207.9,207.84,15.7610915]
[1756992993790,0.03118446,207.9,207.84,7.67]
[1756992997598,7.87,208.01,207.87,7.67]
[1756992997896,7.87,208.07,207.91,7.67]
[1756992998799,7.87,208.07,207.92,4.66346077]
[1756992999504,7.87,208.07,207.91,12.33346077]
[1756992999803,7.87,208.05,207.91,12.33346077]
[1756993000496,7.87,208.05,207.95,4.66346077]
[1756993001199,7.87,208.05,207.95,12.33346077]
[1756993001395,7.87,208.1,207.95,12.33346077]
[1756993001696,7.87,208.1,207.96,7.67]
[1756993002898,4.66346077,208.07,207.91,12.10346077]
[1756993003094,7.69,208.06,207.91,12.10346077]
[1756993003998,7.69,208.06,207.91,7.44]
[1756993005205,7.69,208.03,207.91,7.44]
[1756993007196,7.69,208.09,207.96,4.66346077]
[1756993007500,7.69,208.09,207.97,7.44]
[1756993008802,7.69,208.09,207.92,4.66346077]
[1756993009198,7.69,208.06,207.91,7.44]
[1756993009901,7.69,208.06,207.91,12.10346077]
[1756993010908,7.69,208.02,207.85,7.44]
[1756993012201,7.69,208.02,207.89,7.44]
[1756993014310,7.69,208.02,207.85,4.66346077]
[1756993015105,7.69,208.02,207.86,7.44]
[1756993018903,7.69,208.02,207.9,7.44]
[1756993020304,24.61346077,208.07,207.93,4.66346077]
[1756993020506,12.35346077,208.07,207.94,7.44]
[1756993021215,12.35346077,208.07,207.89,7.44]
[1756993021415,7.69,208.02,207.83,4.66346077]
[1756993021709,7.69,207.98,207.84,7.44]
[1756993022610,7.69,208.04,207.9,7.44]
[1756993022812,7.69,208.04,207.94,7.44]
[1756993023006,20.06346077,208.08,207.97,4.66346077]
[1756993023007,15.4,208.08,207.97,4.66346077]
[1756993024209,15.4,208.08,207.98,7.44]
[1756993025614,7.69,208.07,207.94,4.66346077]
[1756993026812,4.66346077,208.06,207.92,7.44]
[1756993027017,7.69,208.05,207.92,7.44]
[1756993027815,7.69,208.01,207.87,317.18]
[1756993028016,7.69,207.97,207.87,7.44]
[1756993028311,7.69,207.97,207.83,7.44]
[1756993028515,7.69,208.02,207.87,7.44]
[1756993028912,7.69,208.02,207.88,0.03566409]
[1756993029119,7.69,208.02,207.87,7.44]
[1756993029314,13.02465993,208.02,207.87,7.44]
[1756993029615,7.69,207.98,207.87,7.44]
[1756993029820,7.69,207.94,207.81,7.44]
[1756993030615,13.02465993,207.94,207.81,7.44]
[1756993030910,7.69,207.94,207.81,7.44]
[1756993031116,7.69,207.9,207.75,7.44]
[1756993031420,7.69,207.86,207.75,7.44]
[1756993031613,0.03257372,207.85,207.75,7.44]
[1756993031815,0.03257372,207.85,207.8,0.03554306]
[1756993032721,0.03257372,207.85,207.81,7.58]
[1756993033119,0.03257372,207.85,207.8,0.03554306]
[1756993033424,0.03257372,207.85,207.81,7.58]
[1756993034021,0.03257372,207.85,207.8,0.03554306]
[1756993034221,0.03257372,207.85,207.84,7.58]
[1756993035726,0.03257372,207.85,207.81,7.58]
[1756993035924,0.03257372,207.85,207.8,0.03554306]
[1756993036620,7.42,207.84,207.8,0.03554306]
[1756993037120,0.03257372,207.85,207.8,0.03554306]
[1756993037525,12.08346077,207.84,207.67,12.24346077]
[1756993038226,12.08346077,207.84,207.68,7.58]
[1756993038227,7.42,207.84,207.68,7.58]
[1756993038423,9.2,207.89,207.71,4.66346077]
[1756993038624,0.03538932,207.82,207.72,7.58]
[1756993038823,0.03538932,207.82,207.76,7.58]
[1756993039228,7.42,207.89,207.76,7.58]
[1756993039427,0.03398207,207.81,207.76,7.58]
[1756993040027,0.03398207,207.81,207.75,4.66346077]
[1756993040226,0.03398207,207.81,207.74,7.58]
[1756993040427,0.03398207,207.81,207.68,7.58]
[1756993040824,7.42,207.84,207.68,7.58]
[1756993041033,0.03355584,207.77,207.68,7.58]
[1756993042526,0.03355584,207.77,207.7,4.66346077]
[1756993042732,0.03355584,207.77,207.71,7.58]
[1756993043230,0.03355584,207.77,207.74,4.66346077]
[1756993043424,0.03355584,207.77,207.75,7.58]
[1756993044023,0.03355584,207.77,207.74,4.66346077]
[1756993044926,7.42,207.86,207.75,7.58]
[1756993045134,1.89799,207.88,207.75,7.58]
[1756993045336,1.89799,207.88,207.79,7.58]
[1756993046237,1.89799,207.88,207.81,0.03463496]
[1756993047540,1.89799,207.88,207.81,4.69809573]
[1756993047739,1.89799,207.88,207.81,0.03463496]
[1756993048731,1.89799,207.88,207.83,4.66346077]
[1756993049339,1.89799,207.88,207.84,7.58]
[1756993049537,1.89799,207.88,207.83,4.66346077]
[1756993049936,1.89799,207.88,207.84,7.58]
[1756993050237,1.89799,207.88,207.81,0.03463496]
[1756993050238,1.89799,207.88,207.87,4.66346077]
[1756993050541,10.5,207.98,207.87,12.24346077]
[1756993050730,10.5,207.98,207.87,7.58]
[1756993050934,10.5,207.98,207.87,12.24346077]
[1756993051134,10.5,207.98,207.9,0.0305919]
[1756993051336,7.42,207.97,207.9,0.0305919]
[1756993052636,4.66346077,207.94,207.78,7.58]
[1756993052838,7.42,207.9,207.78,7.58]
[1756993053838,0.03045381,207.86,207.78,7.58]
[1756993055741,0.03045381,207.86,207.72,4.66346077]
[1756993055939,7.42,207.85,207.72,12.24346077]
[1756993056445,0.03222085,207.81,207.72,12.24346077]
[1756993056744,7.45222085,207.81,207.68,4.66346077]
[1756993057245,7.42,207.81,207.68,4.66346077]
[1756993057544,0.03601915,207.77,207.68,4.66346077]
[1756993059137,0.03601915,207.77,207.6,4.66346077]
[1756993059138,7.42,207.76,207.61,7.58]
[1756993059744,0.03703409,207.71,207.61,7.58]
[1756993059944,0.03703409,207.71,207.63,7.58]
[1756993060341,0.03703409,207.71,207.66,8.1393227]
[1756993060542,0.03703409,207.71,207.67,7.58]
[1756993060739,124.0,207.84,207.7,8.1393227]
[1756993060940,317.34,207.85,207.71,7.58]
[1756993062039,7.42,207.85,207.76,0.03068626]
[1756993067245,90.58,207.93,207.76,0.03068626]
[1756993067742,90.58,207.93,207.75,7.83]
[1756993067942,90.58,207.93,207.82,0.03569613]
[1756993068149,124.0,207.92,207.82,0.03569613]
[1756993068450,7.9,207.91,207.82,0.03569613]
[1756993068638,16.0393227,207.91,207.82,0.03569613]
[1756993069246,7.9,207.89,207.82,0.03569613]
[1756993069647,8.38,207.89,207.82,0.03569613]
[1756993069844,7.9,207.89,207.82,0.03569613]
[1756993070045,8.1393227,207.87,207.68,15.9693227]
[1756993070250,124.0,207.86,207.68,15.9693227]
[1756993070941,7.9,207.85,207.69,7.83]
[1756993071338,0.0339592,207.79,207.69,7.83]
[1756993073449,7.9,207.78,207.67,309.96]
[1756993073644,7.9,207.78,207.65,7.83]
[1756993074051,0.03619706,207.74,207.65,7.83]
[1756993074647,7.9,207.73,207.61,7.83]
[1756993075351,0.0369379,207.69,207.61,7.83]
[1756993077047,7.9369379,207.69,207.56,8.66824114]
[1756993077249,7.9369379,207.69,207.56,7.83]
[1756993077444,7.9,207.69,207.56,7.83]
[1756993077644,0.0350463,207.65,207.56,7.83]
[1756993079646,0.0350463,207.65,207.59,7.83]
[1756993081348,0.0350463,207.65,207.59,12.1642]
[1756993081649,0.0350463,207.65,207.62,8.1393227]
[1756993082051,0.0350463,207.65,207.64,7.83]
[1756993082449,0.0350463,207.65,207.64,8.31]
[1756993084151,0.0350463,207.65,207.6,8.1393227]
[1756993084354,0.0350463,207.65,207.61,7.83]
[1756993084554,0.0350463,207.65,207.6,8.1393227]
[1756993084944,0.0350463,207.65,207.61,7.83]
[1756993085257,7.9,207.78,207.65,7.83]
[1756993085445,7.9,207.86,207.7,7.83]
[1756993085645,8.1393227,207.83,207.64,49.22]
[1756993085954,7.9,207.86,207.66,7.83]
[1756993086346,7.9,207.86,207.65,8.1393227]
[1756993086347,7.9,207.86,207.7,7.83]
[1756993086553,7.9,207.86,207.74,0.03662034]
[1756993087751,8.1393227,207.84,207.74,0.03662034]
[1756993087950,7.9,207.83,207.74,0.03662034]
[1756993088550,16.0393227,207.83,207.74,0.03662034]
[1756993088956,7.9,207.78,207.63,7.83]
[1756993089546,7.9,207.76,207.63,7.83]
[1756993090254,0.03239738,207.72,207.63,7.83]
[1756993090755,7.93239738,207.72,207.63,7.83]
[1756993090961,0.03239738,207.72,207.63,7.83]
[1756993091554,0.03239738,207.72,207.57,8.1393227]
[1756993091756,7.9,207.71,207.57,8.1393227]
[1756993091958,7.9,207.71,207.58,7.83]
[1756993092259,0.03593066,207.66,207.58,7.83]
[1756993093052,0.03593066,207.66,207.59,7.55]
[1756993093258,0.03593066,207.66,207.63,7.55]
[1756993093453,7.96,207.76,207.63,125.72]
[1756993093655,131.96,207.83,207.67,7.55]
[1756993093858,7.96,207.83,207.67,7.55]
[1756993094059,7.96,207.88,207.71,7.55]
[1756993094755,7.96,207.88,207.77,0.03478423]
[1756993097162,7.96,207.86,207.77,0.03478423]
[1756993097464,7.96,207.86,207.74,7.55]
[1756993097856,7.96,207.86,207.79,0.03156303]
[1756993101561,131.96,207.86,207.79,0.03156303]
[1756993101761,7.96,207.86,207.79,0.03156303]
[1756993106268,16.0993227,207.86,207.79,0.03156303]
[1756993106469,7.96,207.86,207.79,0.03156303]
[1756993109470,7.96,207.86,207.69,7.55]
[1756993109471,7.96,207.82,207.69,7.55]
[1756993109672,134.18,207.82,207.69,7.55]
[1756993109866,134.18,207.82,207.62,7.55]
[1756993110673,0.03573811,207.74,207.62,7.55]
[1756993111470,7.99573811,207.74,207.62,7.55]
[1756993113381,8.1393227,207.7,207.55,7.55]
[1756993113575,7.96,207.69,207.55,7.55]
[1756993114076,0.03659409,207.64,207.55,7.55]
[1756993114282,7.99659409,207.64,207.55,7.55]
[1756993114780,0.03659409,207.64,207.55,7.55]
[1756993118279,4.3337,207.63,207.55,7.55]
[1756993118482,0.03659409,207.64,207.55,7.55]
[1756993119483,0.03659409,207.64,207.55,12.22763921]
[1756993119779,0.03659409,207.64,207.56,7.55]
[1756993120176,67.3845,207.72,207.61,7.55]
[1756993120378,67.3845,207.72,207.64,7.55]
[1756993120578,67.3907,207.7,207.64,7.55]
[1756993120883,67.3964,207.68,207.64,7.55]
[1756993121084,67.3991,207.67,207.6,131.31763921]
[1756993121279,67.4025,207.66,207.6,4.67763921]
[1756993121583,67.4025,207.66,207.61,7.5854772]
[1756993121774,4.3337,207.63,207.61,7.5854772]
[1756993121974,4.3337,207.63,207.61,0.0354772]
[1756993122184,4.3337,207.63,207.61,7.5854772]
[1756993122483,7.96,207.7,207.62,7.25]
[1756993122484,4.3331,207.66,207.62,7.25]
[1756993122684,67.3961,207.68,207.62,7.25]
[1756993122984,67.4028,207.66,207.61,7.2854772]
[1756993123182,67.4053,207.65,207.61,7.2854772]
[1756993123377,67.3987,207.67,207.61,7.2854772]
[1756993123578,4.3337,207.63,207.61,0.0354772]
[1756993123780,4.3337,207.63,207.61,7.2854772]
[1756993123981,4.3337,207.63,207.62,7.25]
[1756993124288,67.4028,207.66,207.61,0.0354772]
[1756993124474,67.3956,207.68,207.61,0.0354772]
[1756993124679,75.3327,207.69,207.61,0.0354772]
[1756993124876,67.3927,207.69,207.61,4.71311641]
[1756993125076,4.3335,207.64,207.61,4.71311641]
[1756993125280,67.4022,207.66,207.61,0.0354772]
[1756993125686,4.3338,207.62,207.61,0.0354772]
[1756993125880,4.3338,207.62,207.61,7.2854772]
[1756993126076,4.3338,207.62,207.61,0.0354772]
[1756993129181,7.94,207.69,207.61,0.0354772]
[1756993129579,4.3333,207.65,207.61,0.0354772]
[1756993129789,4.3333,207.65,207.62,7.25]
[1756993129985,75.3166,207.74,207.62,7.25]
[1756993130287,67.3857,207.71,207.62,7.25]
[1756993130785,4.3327,207.67,207.66,0.03654536]
[1756993131781,67.3792,207.73,207.66,0.03654536]
[1756993132186,7.94,207.72,207.66,0.03654536]
[1756993133193,126.1,207.71,207.66,0.03654536]
[1756993133490,7.94,207.7,207.66,0.03654536]
[1756993133887,126.1,207.71,207.66,0.03654536]
[1756993134385,7.94,207.7,207.66,0.03654536]
[1756993134787,126.1,207.71,207.66,0.03654536]
[1756993135293,7.94,207.7,207.66,0.03654536]
[1756993135490,126.1,207.71,207.66,0.03654536]
[1756993135690,7.94,207.7,207.66,0.03654536]
[1756993135891,7.94,207.72,207.66,0.03654536]
[1756993136088,125.96,207.71,207.66,0.03654536]
[1756993136294,7.94,207.7,207.66,0.03654536]
[1756993136493,7.94,207.72,207.66,0.03654536]
[1756993143792,7.94,207.72,207.66,0.03654536]
[1756993146305,125.42,207.71,207.66,0.03654536]
[1756993146703,7.94,207.7,207.66,0.03654536]
[1756993147500,7.97653969,207.7,207.57,7.25]
[1756993147700,7.94,207.68,207.54,4.67763921]
[1756993148700,0.03547123,207.63,207.54,4.67763921]
[1756993150404,0.03547123,207.63,207.59,7.25]
[1756993150800,0.03547123,207.63,207.55,4.02462877]
[1756993151000,0.03547123,207.63,207.57,4.67763921]
[1756993152001,0.03547123,207.63,207.58,7.25]
[1756993152207,7.3,207.77,207.62,7.25]
[1756993152403,125.38,207.76,207.65,4.67763921]
[1756993153302,7.3,207.75,207.62,7.25]
[1756993153500,12.63465993,207.75,207.68,0.03441865]
[1756993154908,12.63465993,207.73,207.68,0.03441865]
[1756993155300,5.33465993,207.72,207.68,0.03441865]
[1756993155706,7.3,207.71,207.68,0.03441865]
[1756993156009,7.3,207.69,207.68,0.03441865]
[1756993156205,7.3,207.69,207.58,12.03763921]
[1756993156206,7.3,207.69,207.58,7.36]
[1756993156407,7.3,207.69,207.55,4.02462877]
[1756993156609,7.3,207.65,207.54,8.70226798]
[1756993156804,7.3,207.65,207.54,4.02462877]
[1756993157009,30.02,207.64,207.53,11.38462877]
[1756993157309,30.02,207.64,207.53,7.36]
[1756993157909,0.03392872,207.61,207.53,7.36]
[1756993162113,7.33392872,207.61,207.53,7.36]
[1756993166413,0.03392872,207.61,207.53,7.36]
[1756993166717,7.33392872,207.61,207.53,7.36]
[1756993167413,1.87256982,207.59,207.53,7.36]
[1756993167916,7.3,207.58,207.48,7.36]
[1756993168116,7.3,207.58,207.51,1.87256982]
[1756993168509,0.03355649,207.55,207.53,9.23256982]
[1756993168716,0.03355649,207.55,207.53,1.87256982]
[1756993168917,0.03355649,207.55,207.54,7.36]
[1756993169416,0.03355649,207.55,207.54,9.23256982]
[1756993170119,0.03355649,207.55,207.54,9.71256982]
[1756993170421,7.3,207.66,207.55,7.36]
[1756993170616,7.3,207.66,207.61,9.23256982]
[1756993170820,124.0,207.72,207.52,8.39614774]
[1756993170821,1.87256982,207.68,207.52,4.06044774]
[1756993171012,1.87256982,207.66,207.58,1.87256982]